Cogmind - Beta 15 @@@ ROGUE MODE // 2025.07.27 @ 19:46:30 Player: Skysub Result: Destroyed by F8-04T(R) with Subdweller Machine Gun Performance ------------- Evolutions (0) 0 Regions Visited (3) 600 Robots Destroyed (39) 195 Value Destroyed (760) 760 Prototype IDs (0) 0 Alien Tech Used (0) 0 Bonus (0) 0 TOTAL SCORE: 1555 Bonus ------- None Cogmind --------- Core Integrity 0/250 Matter 101/300 Energy 200/200 System Corruption 0% Temperature Cool (0) Movement Rolling (125) Ox3 Location -10/Subcaves Parts ------- > --- POWER (1) -------- Subdweller Power Source > --- PROPULSION (2) --- Spiked Treads Wheel > --- UTILITY (2) ------ Large Storage Unit Subdweller Optics > --- WEAPON (2) ------- Battle Rifle Light Cannon > --- INVENTORY (15) --- Subdweller Power Source Subdweller Power Source Makeshift Flight Unit Small Storage Unit Subdweller Optics Tractor Beam Subdweller Laser Subdweller Beam Cannon Subdweller Beam Cannon Light Assault Rifle Light Assault Rifle Battle Rifle Makeshift Shrapnel Gun Grenade Launcher Mining Laser Peak State ------------ > --- POWER ------------ Subdweller Power Source > --- PROPULSION ------- Spiked Treads Wheel > --- UTILITY ---------- Large Storage Unit Subdweller Optics > --- WEAPON ----------- Makeshift Shrapnel Gun Light Cannon > --- INVENTORY -------- Light Ion Engine Makeshift Flight Unit Small Storage Unit Tractor Beam Subdweller Laser Subdweller Beam Cannon Light Assault Rifle Light Assault Rifle Battle Rifle Grenade Launcher Mining Laser [Rating: 14] Favorites ----------- Power Ion Engine Engine Ion Engine Propulsion Light Treads Treads Light Treads Wheel Wheel Utility Large Storage Unit Device Seismic Detector Storage Large Storage Unit Weapon Assault Rifle Energy Gun Particle Gun Ballistic Gun Assault Rifle Ballistic Cannon Light Cannon Launcher Grenade Launcher Special Weapon Mining Laser Build | -11 -10 -10 -10 ------- Run | Yrd Mat Min Sub Slots Evolved . | . . . . Power . | . . . . Propulsion . | . . . . Utility . | . . . . Weapon . | . . . . Parts Attached 26 | 7 5 . 14 Power 4 | 1 1 . 2 Engine 4 | 1 1 . 2 Core . | . . . . Reactor . | . . . . Propulsion 6 | 2 . . 4 Treads 4 | 2 . . 2 Leg . | . . . . Wheel 2 | . . . 2 Hover . | . . . . Flight . | . . . . Utility 5 | 2 2 . 1 Device 3 | 1 1 . 1 Storage 2 | 1 1 . . Processor . | . . . . Hackware . | . . . . Protection . | . . . . Artifact . | . . . . Weapon 11 | 2 2 . 7 Energy Gun 1 | . 1 . . Energy Cannon . | . . . . Ballistic Gun 7 | 2 1 . 4 Ballistic Cannon 1 | . . . 1 Launcher 1 | . . . 1 Special Weapon 1 | . . . 1 Impact Weapon . | . . . . Slashing Weapon . | . . . . Piercing Weapon . | . . . . Special Melee Weapon . | . . . . Unidentified Prototypes . | . . . . Parts Lost 12 | . 3 . 9 Power 2 | . 1 . 1 Propulsion 4 | . . . 4 Utility 2 | . 1 . 1 Weapon 4 | . 1 . 3 Highest Loss Streak 5 | . 1 . 5 To Critical Strikes . | . . . . Average Backups 9 | 3 6 11 12 Power 1 | . 1 1 1 Propulsion 2 | 1 2 3 2 Utility 1 | . . 1 2 Weapon 4 | . 2 5 6 Tool/Special . | . . . . Unused Backups 10 | . . . 10 Power 3 | . . . 3 Propulsion 1 | . . . 1 Utility 2 | . . . 2 Weapon 4 | . . . 4 Tool/Special . | . . . . Average Slot Usage (%) 96 | . 98 100 90 Engine 13 | . 13 14 13 Treads 25 | . 27 28 19 Wheel 1 | . . . 6 Device 12 | . 13 14 8 Storage 14 | . 14 14 14 Energy Gun 7 | . 7 14 1 Ballistic Gun 17 | . 19 14 16 Ballistic Cannon 1 | . . . 3 Launcher 1 | . . . 3 Peak Build Rating 14 | 7 8 9 14 Average Rating 8 | 5 7 8 10 On Entrance 6 | . 7 8 9 Naked Turns . | . . . . Heaviest Build 33 | 15 31 30 33 Greatest Support 40 | 40 40 40 40 Greatest Overweight (x) 3 | 1 1 . 3 Average Overweight (x) . | . . . 1 Largest Inventory Capacity 15 | 8 15 15 15 Average Capacity 13 | 7 11 15 15 Most Carried 15 | 4 9 12 15 Average Carried 9 | 3 6 11 12 Final Capacity 15 | 8 15 15 15 Final Carried 15 | 4 9 12 15 Class Distribution -------------------- 91% | Mutant 8% | Scavenger-Mutant Dominant Class ---------------- Mutant | -10/Materials Mutant | -10/Mines Mutant | -10/Subcaves Resources | -11 -10 -10 -10 ----------- Run | Yrd Mat Min Sub Matter Collected 916 | 375 293 29 219 Remotely . | . . . . Salvage Created 1032 | 198 513 148 173 Parts 85 | 20 42 13 10 Haulers Intercepted 1 | . 1 . . Recyclers Shooed . | . . . . Parts Field Recycled . | . . . . Retrieved Matter . | . . . . Parts Self-Destructed 5 | . . . 5 Prevented . | . . . . Kills | -11 -10 -10 -10 ------- Run | Yrd Mat Min Sub Combat Hostiles Destroyed 24 | . 12 6 6 Guns 21 | . 12 6 3 Cannons 1 | . . . 1 AOE 2 | . . . 2 Classes Destroyed 8 | 3 4 . 1 Worker 3 | 2 1 . . Tunneler 7 | 5 1 1 . Hauler 1 | . 1 . . Recycler 2 | 1 . 1 . Watcher 2 | . 2 . . Swarmer 9 | . 3 6 . Grunt 9 | . 9 . . Subdweller 6 | . . . 6 Best Kill Streak 5 | 3 5 3 2 Combat Bots Only 4 | . 4 3 2 Max Kills in Single Turn 2 | 1 1 2 1 Gunslinging 1 | . . 1 . Exploded 1 | . . . 1 Melee . | . . . . Uniques/NPCs Destroyed . | . . . . Combat | -11 -10 -10 -10 -------- Run | Yrd Mat Min Sub Hostile Shots Fired 152 | . 67 30 55 Missed 33 | . 13 8 12 Hits 119 | . 54 22 43 Projectile 119 | . 54 22 43 Critical Strikes 4 | . 2 . 2 Damage Taken 1753 | . 635 170 948 Core 264 | . 101 58 105 Absorbed by Shields . | . . . . Core Remaining (%) 100 | 100 . . . Volleys Fired 146 | 18 51 17 60 Largest 2 | 2 2 2 2 Hottest 100 | 40 85 85 100 Shots Fired 244 | 36 100 25 83 Gun 203 | 36 100 25 42 Cannon 32 | . . . 32 Launcher 6 | . . . 6 Special 3 | . . . 3 Kinetic 207 | 36 85 17 69 Thermal 31 | . 15 8 8 Explosive 6 | . . . 6 Electromagnetic . | . . . . Robot Hit Streak 21 | 4 18 11 21 Robot Miss Streak 5 | 5 4 4 4 Penetration Max . | . . . . Secondary Targets 3 | . 2 1 . Max Gunslinging Chain 1 | . 1 1 . Shots Hit Robots 156 | 19 64 17 56 Core Hits 57 | 7 26 9 15 Critical Kills 1 | . 1 . . Critical Parts Destroyed 2 | . 2 . . Critical Strikes 5 | . 4 . 1 Burn 2 | . 1 . 1 Destroy 3 | . 3 . . Melee Attacks . | . . . . Impact . | . . . . Slashing . | . . . . Piercing . | . . . . Sneak Attacks . | . . . . Combat Hostiles . | . . . . Follow-up Attacks . | . . . . Damage Inflicted 2131 | 238 860 184 849 Guns 1683 | 225 834 176 448 Cannons 129 | . . . 129 Explosions 272 | . . . 272 Melee . | . . . . Ramming 47 | 13 26 8 . Kinetic 1521 | 225 679 97 520 Thermal 291 | . 155 79 57 Explosive 272 | . . . 272 Electromagnetic . | . . . . Impact . | . . . . Slashing . | . . . . Piercing . | . . . . Highest Corruption . | . . . . Average Corruption . | . . . . Corruption Purged . | . . . . Corruption Blocked . | . . . . Overload Shots . | . . . . Overflow Damage . | . . . . Projectiles . | . . . . Explosions . | . . . . Melee . | . . . . Knockbacks 2 | . 1 . 1 Impact 1 | . 1 . . Kinetic 1 | . . . 1 Secondary . | . . . . Self-Inflicted Damage . | . . . . Shots . | . . . . Rammed 8 | 2 5 1 . Targets Rammed 11 | 3 6 2 . Kicked . | . . . . Crushed 3 | 1 1 1 . Highest Temperature 266 | . 190 140 266 Average Temperature 53 | . 48 54 70 Received Heat Transfer 894 | . 351 . 543 Siege Activations . | . . . . Martial Activations . | . . . . Shielding Activations . | . . . . Robots Disrupted . | . . . . Combat Hostiles . | . . . . Robots Corrupted . | . . . . Combat Hostiles . | . . . . Parts Fried . | . . . . Impact Corruptions . | . . . . Robots Melted . | . . . . Combat Hostiles . | . . . . Parts Melted 2 | . . 1 1 Heat Transferred 851 | . 444 185 222 Parts Sabotaged . | . . . . Parts Stolen . | . . . . Parts Stripped . | . . . . Power Chain Reactions . | . . . . Alert | -11 -10 -10 -10 ------- Run | Yrd Mat Min Sub Maximum Alert Level . | . . . . Low Security (%) 100 | 100 100 100 . Level 1 . | . . . . Level 2 . | . . . . Level 3 . | . . . . Level 4 . | . . . . Level 5 . | . . . . High Security . | . . . . Max Security . | . . . . Peak Influence 162 | 10 162 110 . Initial 15 | . . 15 . Average 31 | 1 45 17 . Influence Increases 645 | 40 455 150 . Destroy 0b10 Robot/C 360 | . 240 120 . Destroy 0b10 Robot/NC 75 | 40 25 10 . Destroy Leader 96 | . 76 20 . Successful Hack 9 | . 9 . . Select Force Hacks 60 | . 60 . . Lose Combat Pursuer 45 | . 45 . . Influence Decreases 645 | 40 415 190 . Entered New Map 25 | . . 25 . Time Decay 590 | 40 385 165 . Lost Part 30 | . 30 . . Squads Dispatched 4 | . 4 . . Investigation 2 | . 2 . . Extermination . | . . . . Reinforcement 2 | . 2 . . Assault . | . . . . Garrison . | . . . . Intercept . | . . . . Searches Triggered . | . . . . Construction Impeded . | . . . . Haulers Reinforced . | . . . . Active Scanning Responses . | . . . . Cargo Convoy Interrupts . | . . . . Stealth | -11 -10 -10 -10 --------- Run | Yrd Mat Min Sub Distress Signals . | . . . . Communications Jammed . | . . . . Distress Signals . | . . . . Times Spotted 36 | . 23 6 7 Peak Tracking Total 5 | . 5 3 2 Tactical Retreats 2 | . 2 . . Traps | -11 -10 -10 -10 ------- Run | Yrd Mat Min Sub Traps Triggered 1 | . 1 . . Indirectly . | . . . . Trap Hack Attempts . | . . . . Triggered . | . . . . Disarmed . | . . . . Reprogrammed . | . . . . Reused . | . . . . Traps Extracted . | . . . . Installed . | . . . . Triggered . | . . . . Machines | -11 -10 -10 -10 ---------- Run | Yrd Mat Min Sub Machines Disabled . | . . . . Max in Single Turn . | . . . . Machines Repaired . | . . . . Machines Dismantled . | . . . . Machines Sabotaged . | . . . . Overloaded Fab Kills . | . . . . Hacking | -11 -10 -10 -10 --------- Run | Yrd Mat Min Sub Machines Accessed 8 | . 8 . . Terminals 6 | . 6 . . Fabricators . | . . . . Repair Stations . | . . . . Recycling Units 2 | . 2 . . Scanalyzers . | . . . . Garrison Access . | . . . . Total Hacks 23 | . 23 . . Successful 13 | . 13 . . Failed 10 | . 10 . . Catastrophic . | . . . . Database Lockouts . | . . . . Manual 19 | . 19 . . Terminals 16 | . 16 . . Fabricators . | . . . . Repair Stations . | . . . . Recycling Units 7 | . 7 . . Scanalyzers . | . . . . Garrison Access . | . . . . Terminal Hacks 1 | . 1 . . Locate Traps 1 | . 1 . . Fabricator Hacks . | . . . . Repair Station Hacks . | . . . . Recycling Unit Hacks 3 | . 3 . . Report Inventory 3 | . 3 . . Scanalyzer . | . . . . Garrison Access Hacks . | . . . . Unauthorized Hacks 9 | . 9 . . Terminals 7 | . 7 . . Botnet 3 | . 3 . . Skim 4 | . 4 . . Fabricators . | . . . . Repair Stations . | . . . . Recycling Units 2 | . 2 . . Tunnel 2 | . 2 . . Scanalyzers . | . . . . Garrison Access . | . . . . Data Cores Recovered . | . . . . Used . | . . . . Hacking Detections 7 | . 7 . . Full Trace Events . | . . . . Feedback Events . | . . . . Feedback Blocked . | . . . . Robot Schematics Acquired . | . . . . Robots Built . | . . . . Authchips . | . . . . Time . | . . . . Total Robot Build Rating . | . . . . Part Schematics Acquired . | . . . . Parts Built . | . . . . Authchips . | . . . . Time . | . . . . Total Part Build Rating . | . . . . Parts Repaired . | . . . . Time . | . . . . Parts Recycled . | . . . . Recycled Matter . | . . . . Retrieved Matter . | . . . . Retrieved Components . | . . . . Parts Scanalyzed . | . . . . Part Schematics Acquired . | . . . . Parts Damaged . | . . . . Bothacking | -11 -10 -10 -10 ------------ Run | Yrd Mat Min Sub Used RIF Installer . | . . . . Robots Hacked . | . . . . Non-combat . | . . . . Combat . | . . . . Robot Hacks Applied . | . . . . Relay Couplers Released . | . . . . Fabnet Peak Effective % . | . . . . Robots Rewired . | . . . . Allies Hacked . | . . . . Hacks Repelled . | . . . . Allies | -11 -10 -10 -10 -------- Run | Yrd Mat Min Sub Total Allies . | . . . . Largest Group . | . . . . Highest-Rated Group . | . . . . Highest-Rated Ally . | . . . . Total Orders . | . . . . Ally Attacks . | . . . . Total Damage . | . . . . Kills . | . . . . Allies Corrupted . | . . . . Allies Melted . | . . . . Intel | -11 -10 -10 -10 ------- Run | Yrd Mat Min Sub Active Infowar (turns) 3082 | 64 1472 908 638 Optics 556 | . . . 556 Seismic 2526 | 64 1472 908 82 Robot Analysis Total . | . . . . Derelict Logs Recovered 1 | . . 1 . Drone Launches . | . . . . Drone Recoveries . | . . . . Exploration | -11 -10 -10 -10 ------------- Run | Yrd Mat Min Sub Turns Passed 3744 | 237 1539 908 1060 Spaces Moved 2082 | 107 827 540 608 Core 7 | 7 . . . Treads 1776 | 100 827 540 309 Legs . | . . . . Wheels 299 | . . . 299 Hover . | . . . . Flight . | . . . . Fastest Speed 50 | 50 160 160 125 Average Speed 155 | 153 160 160 144 Slowest Speed 240 | 160 240 160 240 Overloaded Moves . | . . . . Propulsion Burnouts . | . . . . Robots Hopped . | . . . . Potential Cave-ins . | . . . . Cave-ins Triggered . | . . . . Exploration Rate (%) 58 | 8 90 97 39 Regions Visited 3 Branch Regions 2 Pre-discovered Areas 3 | . 2 1 . Known Exits Taken . | . . . . Unknown Exits Taken 3 | 1 1 1 . Scrap Searched 10 | . . 1 9 Spaces Dug . | . . . . Terrain Destroyed 29 | . . . 29 Melee . | . . . . Projectile . | . . . . AOE 29 | . . . 29 Terrain Rammed . | . . . . Walls Destroyed . | . . . . Machines Disabled . | . . . . Actions | -11 -10 -10 -10 --------- Run | Yrd Mat Min Sub Total 2337 | 138 936 561 702 Wait 47 | . 42 . 5 Move 2079 | 106 826 539 608 Hop . | . . . . Pick Up 20 | 4 3 3 10 Fast Attach 15 | 7 6 . 2 Attach 7 | . . . 7 Detach . | . . . . Swap 11 | . 2 . 9 Drop 1 | . . . 1 Fire 146 | 18 51 17 60 Melee . | . . . . Ram . | . . . . Kick . | . . . . Crush 11 | 3 6 2 . Escape Stasis . | . . . . Rewire . | . . . . Trap . | . . . . Miscellaneous . | . . . . Route ------- -11/Scrapyard -10/Materials (discovered 5 exits: [*Mat x3] / [*Min] / [*Sub]) -10/Mines (discovered 4 exits: [*Mat x2] / [*Exi] / [*Sub]) -10/Subcaves (discovered 2 exits: [*Mat] / [*Scr]) History --------- Turn | Location | Event 5 | -11/Scrapyard | Discovered new exit (range 15) 238 | -11/Scrapyard | Entered Materials 279 | -10/Materials | Discovered new exit (range 8) 315 | -10/Materials | Build established: Mutant 523 | -10/Materials | Discovered new exit (range 16) 780 | -10/Materials | Discovered new exit (range 5) 794 | -10/Materials | Discovered new exit (range 7) 932 | -10/Materials | Discovered new exit (range 10) 1571 | -10/Materials | Build established: Scavenger-Mutant 1777 | -10/Materials | Entered Mines 1894 | -10/Mines | Build established: Mutant 1939 | -10/Mines | Core integrity fell below 50% 1992 | -10/Mines | Deemed a non-threat by the Exiles lab entrance 1994 | -10/Mines | Discovered new exit (range 5) 2165 | -10/Mines | Learned location of Mines (-9) 2172 | -10/Mines | Discovered new exit (range 16) 2225 | -10/Mines | Discovered new exit (range 7) 2613 | -10/Mines | Discovered new exit (range 14) 2685 | -10/Mines | Entered Subcaves 2686 | -10/Subcaves | Approached by a straggling Scientist 2762 | -10/Subcaves | Scientist uncovered a shortcut to Scraptown 2798 | -10/Subcaves | Lost 5 parts (1p1n1u2w) 2862 | -10/Subcaves | Shifting Twisted Machinery released Piercing Trap 2862 | -10/Subcaves | Shifting Twisted Machinery released Flamer 2862 | -10/Subcaves | Discovered new exit (range 3) 3208 | -10/Subcaves | Disturbed a concealed Subdweller 3240 | -10/Subcaves | Disturbed a concealed Subdweller 3268 | -10/Subcaves | Core integrity fell below 20% 3745 | -10/Subcaves | Destroyed by F8-04T(R) with Subdweller Machine Gun Last Messages --------------- 03348_ Subatomizers dissect the Sub. Optics. 03350_ Acquired 2 matter. 03388_ 9F-PZ1(R) emerges from the Twisted Machinery. 03394_ BC-AQW(R) destroyed. 03395_ 9F-PZ1(R) affixes Scrap Shield Fragment to Scrap Shield. 03397_ 9F-PZ1(R) knocked back. 03400_ 9F-PZ1(R) destroyed. 03402_ The unstable cave ceiling collapses. 03409_ Acquired Sub. Power Source. 03410_ Acquired 2 matter. 03448_ The unstable cave ceiling collapses. 03635_ Critical hit (Meltdown: +270). 03648_ Sub. Monowheel melted. 03648_ Q9-T6H(R) destroyed. 03649_ Subatomizers dissect the Sub. Power Source. 03661_ Acquired Sub. Beam Cannon. 03664_ Acquired 11 matter. 03668_ Acquired Sub. Optics. 03670_ Dropped Lgt. Ion Engine. 03670_ Acquired Sub. Power Source. Map ----- +----------------------------------------------------+ | ?????????????????????????????????????????????????? | | ?????????????????????????????????????????????????? | | ?????????????????????????????????????????????????? | | ?????????????????????????????????????????????????? | | ?????????????????????????????????????????????????? | | ?????????????????????????????????????????????????? | | ?????????????????????????????????????????????????? | | ?????????????????????????????????????????????????? | | ?????????????????????????????????????????????????? | | ?????????????????????????????????????????????????? | | ?????????????????????????????????????????????????? | | ?????????????????????????????????????????????????? | | ?????????????????????????????????????????????????? | | ???????????????????????????????????????? ????????? | | ?????????????????????????????????????? ????????? | | ???????????????????????????????????? ????????? | | ???????????????????????????????????? ??????????? | | ??????????????????????????????????? #??????????? | | ?????????????????????????????????? ##?????????? | | ????????????????????????###?????? % ##????????? | | ????????????????????????# ##???? ?????????? | | ???????????????????????## ##?? #???????????? | | ???????????????????????# ## #????????????? | | ???????????????????????# R #?????????????? | | ???????????????????????# #?? #?????????????? | | ????????????????????????#@ #? ## #?????????????? | | ???????????????????????## ## #?????????????? | | ???????????????????????# #??????????????? | | ???????????????????????# #??????????????? | | ???????????????????????# ##?????????????? | | ??????????????????????## #?????????????? | | ??????????????????????# ## #?????????????? | | ??????????????????????# ### #????????????? | | ??????????????????????## #?# #????????????? | | ???????????????????????# ##? #????????????? | | ???????????????????????# #??### #????????????? | | ??????????????????????## ##?? ## ##???????????? | | ?????????????????????## #??# #???????????? | | ?????????????????????# ### ##??????????? | | ?????????????????????# #??????????? | | ?????????????????????## ###??????????? | | ???????????????#####??## ##????????????? | | ???????????????# ##??## #?????????????? | | ???????????????# #???# ### #?????????????? | | ??????????????## ###### #??? #????????????? | | ??????????????# ## #?# #???? ???????????? | | ??????????????# ## ### ####????? ?????????? | | ???????????????# ##?????????? ???????? | | ???????????????## ##???????????? ##??????? | | ????????????????## #??????????????#????????? | +----------------------------------------------------+ Best States ------------- Heat Dissipation 25 Energy Generation 15 Energy Capacity 250 Matter Stores 300 Matter Capacity 300 Sight Range 21 Terrain Scan Density 10 Evasion (%) 40 Recoil Reduction 2 Item Schematics ----------------- None Robot Schematics ------------------ None Fabricated ------------ Nothing Repaired ---------- Nothing Alien Tech Used ----------------- None Achievements -------------- None Challenges ------------ None Game ------ Seed LightningMolecularMultirail Manual? 0 Play Time 00:18:45 Cumulative 203.0 hours Start 2025.07.27 @ 19:23:45 End 2025.07.27 @ 19:46:30 Sessions 1 Manual Loads 0 Difficulty Rogue Special Mode None Game No. 215 Rogue 215 Adventurer 0 Explorer 0 Win Type - Total 4 Types 1/0/1/1/0/0/0/0/0/1 Lore% 71 Gallery% 67 Achievement% 61 Wizard Run 0 Options --------- Layout 1 ASCII 0 Keyboard 1 Movement Numpad Keybinds 0 Fullscreen 1 Font 32/SmallcapsGlow Map View 77x35 Zoom Use 0% Tactical HUD 1 Map Filters NONE Filters NONE Steam 1 RUN: 505017c9-26dd-41df-b439-e56746136611